Cogmind - Beta 13 @@@ ROGUE MODE // 2024.04.23 @ 12:27:39 Player: Red_Zig Result: Destroyed by 13-7KN(R) with Subdweller Laser Performance ------------- Evolutions (0) 0 Regions Visited (2) 400 Robots Destroyed (17) 85 Value Destroyed (464) 464 Prototype IDs (2) 40 Alien Tech Used (0) 0 Bonus (0) 0 TOTAL SCORE: 989 Bonus ------- None Cogmind --------- Core Integrity 0/250 Matter 204/300 Energy 261/265 System Corruption 1% Temperature Cool (8) Movement Walking (190) Ox1 Location -10/Subcaves Parts ------- > --- POWER (1) -------- Improved Ion Engine > --- PROPULSION (2) --- Aluminum Leg Aluminum Leg > --- UTILITY (2) ------ Medium Storage Unit Signal Interpreter > --- WEAPON (2) ------- Subdweller Machine Gun Battle Cannon > --- INVENTORY (10) --- Subdweller Power Source ECM Suite Heavy EM Pulse Gun Heavy EM Pulse Gun Heavy EM Pulse Gun Battle Rifle Grenade Launcher Mining Laser Flamer Flamer Peak State ------------ > --- POWER ------------ Improved Ion Engine > --- PROPULSION ------- Aluminum Leg Aluminum Leg > --- UTILITY ---------- Medium Storage Unit Visual Processing Unit > --- WEAPON ----------- Heavy EM Pulse Gun Heavy EM Pulse Gun > --- INVENTORY -------- Light Ion Engine Light Treads Light Treads Heavy EM Pulse Gun Heavy EM Pulse Gun Spread Laser Assault Rifle Assault Rifle Light Assault Rifle Grenade Launcher [Rating: 12] Favorites ----------- Power Light Ion Engine Engine Light Ion Engine Propulsion Aluminum Leg Leg Aluminum Leg Utility Medium Storage Unit Storage Medium Storage Unit Processor Signal Interpreter Weapon Heavy EM Pulse Gun Energy Gun Heavy EM Pulse Gun Ballistic Gun Assault Rifle Ballistic Cannon Battle Cannon Special Weapon Mining Laser Build | -11 -10 -10 ------- Run | Yrd Mat Sub Slots Evolved . | . . . Power . | . . . Propulsion . | . . . Utility . | . . . Weapon . | . . . Parts Attached 27 | 6 10 11 Power 5 | 1 3 1 Engine 5 | 1 3 1 Core . | . . . Reactor . | . . . Propulsion 2 | 2 . . Treads . | . . . Leg 2 | 2 . . Wheel . | . . . Hover . | . . . Flight . | . . . Utility 4 | 1 3 . Device . | . . . Storage 2 | 1 1 . Processor 2 | . 2 . Hackware . | . . . Protection . | . . . Artifact . | . . . Weapon 16 | 2 4 10 Energy Gun 5 | . 4 1 Energy Cannon . | . . . Ballistic Gun 7 | 2 . 5 Ballistic Cannon 1 | . . 1 Launcher . | . . . Special Weapon 3 | . . 3 Impact Weapon . | . . . Slashing Weapon . | . . . Piercing Weapon . | . . . Special Melee Weapon . | . . . Unidentified Prototypes . | . . . Parts Lost 2 | . 1 1 Power 1 | . 1 . Propulsion . | . . . Utility . | . . . Weapon 1 | . . 1 Highest Loss Streak 1 | . 1 1 To Critical Strikes . | . . . Average Slot Usage (%) 96 | . 95 97 Engine 12 | . 12 12 Leg 28 | . 28 28 Storage 14 | . 14 14 Processor 11 | . 10 14 Energy Gun 16 | . 24 3 Ballistic Gun 5 | . 3 8 Ballistic Cannon 2 | . . 5 Special Weapon 3 | . . 9 Naked Turns . | . . . Heaviest Build 24 | 14 21 24 Greatest Support 20 | 20 20 20 Greatest Overweight (x) 4 | 4 1 1 Average Overweight (x) . | 1 . . Largest Inventory Capacity 10 | 8 10 10 Average Capacity 9 | 7 9 10 Most Carried 10 | 7 10 10 Average Carried 9 | 3 9 9 Final Capacity 10 | 8 10 10 Final Carried 10 | 6 10 10 Class Distribution -------------------- 100% | Mutant Dominant Class ---------------- Mutant | -10/Materials Mutant | -10/Subcaves Resources | -11 -10 -10 ----------- Run | Yrd Mat Sub Matter Collected 576 | 211 209 156 Remotely . | . . . Salvage Created 604 | . 419 185 Parts 38 | . 27 11 Haulers Intercepted 2 | . 2 . Recyclers Shooed 1 | . 1 . Parts Field Recycled . | . . . Retrieved Matter . | . . . Parts Self-Destructed 8 | . . 8 Prevented . | . . . Kills | -11 -10 -10 ------- Run | Yrd Mat Sub Combat Hostiles Destroyed 12 | . 7 5 Guns 8 | . 6 2 Cannons 3 | . . 3 AOE 1 | . 1 . Classes Destroyed 6 | . 5 1 Hauler 2 | . 2 . Operator 1 | . 1 . Watcher 2 | . 2 . Swarmer 3 | . 3 . Grunt 4 | . 4 . Subdweller 5 | . . 5 Best Kill Streak 3 | . 3 1 Combat Bots Only 3 | . 3 1 Max Kills in Single Turn 1 | . 1 1 Gunslinging . | . . . Exploded 1 | . 1 . Melee . | . . . Uniques/NPCs Destroyed . | . . . Combat | -11 -10 -10 -------- Run | Yrd Mat Sub Hostile Shots Fired 54 | . 26 28 Missed 24 | . 14 10 Damage Taken 651 | . 153 498 Core 267 | . 19 248 Absorbed by Shields . | . . . Core Remaining (%) 100 | 100 . . Volleys Fired 90 | . 36 54 Largest 2 | . 2 2 Hottest 130 | . 130 100 Shots Fired 146 | . 73 73 Gun 99 | . 73 26 Cannon 16 | . . 16 Launcher . | . . . Special 31 | . . 31 Kinetic 56 | . 20 36 Thermal 35 | . 4 31 Explosive . | . . . Electromagnetic 55 | . 49 6 Robot Hit Streak 10 | . 7 10 Robot Miss Streak 4 | . 4 3 Penetration Max . | . . . Secondary Targets 1 | . 1 . Max Gunslinging Chain 1 | . 1 . Shots Hit Robots 67 | . 41 26 Core Hits 26 | . 16 10 Critical Kills . | . . . Critical Parts Destroyed . | . . . Critical Strikes 2 | . 2 . Corrupt 2 | . 2 . Melee Attacks . | . . . Impact . | . . . Slashing . | . . . Piercing . | . . . Sneak Attacks . | . . . Combat Hostiles . | . . . Follow-up Attacks . | . . . Damage Inflicted 1230 | . 765 465 Guns 893 | . 603 290 Cannons 175 | . . 175 Explosions 162 | . 162 . Melee . | . . . Ramming . | . . . Kinetic 557 | . 158 399 Thermal 196 | . 196 . Explosive . | . . . Electromagnetic 477 | . 411 66 Impact . | . . . Slashing . | . . . Piercing . | . . . Highest Corruption 1 | . 1 1 Average Corruption 1 | . 1 1 Corruption Purged . | . . . Corruption Blocked . | . . . Effects 15 | . 9 6 Message Errors 4 | . 4 . Matter Fused 2 | . . 2 Heat Flow Errors 4 | . 3 1 Energy Discharges 1 | . 1 . Data Loss (minor) 1 | . . 1 Misfires 3 | . 1 2 Overload Shots . | . . . Overflow Damage 5 | . 5 . Projectiles . | . . . Explosions 5 | . 5 . Melee . | . . . Knockbacks 1 | . . 1 Impact . | . . . Kinetic 1 | . . 1 Secondary . | . . . Self-Inflicted Damage 37 | . 37 . Shots 1 | . 1 . Rammed . | . . . Targets Rammed . | . . . Kicked . | . . . Crushed . | . . . Highest Temperature 227 | . 227 185 Average Temperature 66 | . 65 108 Received Heat Transfer 72 | . 24 48 Siege Activations . | . . . Robots Corrupted . | . . . Combat Hostiles . | . . . Parts Fried 2 | . 2 . Impact Corruptions . | . . . Robots Melted . | . . . Combat Hostiles . | . . . Parts Melted . | . . . Heat Transferred 295 | . 295 . Parts Sabotaged . | . . . Parts Stolen . | . . . Parts Stripped . | . . . Power Chain Reactions 2 | . 2 . Alert | -11 -10 -10 ------- Run | Yrd Mat Sub Peak Influence 208 | . 208 . Initial . | . . . Average 46 | . 49 . Maximum Alert Level 1 | . 1 . Low Security (%) 95 | 100 95 . Level 1 4 | . 4 . Level 2 . | . . . Level 3 . | . . . Level 4 . | . . . Level 5 . | . . . High Security . | . . . Max Security . | . . . Squads Dispatched . | . . . Investigation . | . . . Extermination . | . . . Reinforcement . | . . . Assault . | . . . Garrison . | . . . Intercept . | . . . Searches Triggered . | . . . Construction Impeded . | . . . Haulers Reinforced . | . . . Active Scanning Responses . | . . . Cargo Convoy Interrupts . | . . . Stealth | -11 -10 -10 --------- Run | Yrd Mat Sub Distress Signals . | . . . Communications Jammed . | . . . Distress Signals . | . . . Times Spotted 28 | . 22 6 Peak Tracking Total 4 | . 4 2 Tactical Retreats . | . . . Traps | -11 -10 -10 ------- Run | Yrd Mat Sub Traps Triggered 1 | . 1 . Indirectly . | . . . Trap Hack Attempts . | . . . Triggered . | . . . Disarmed . | . . . Reprogrammed . | . . . Reused . | . . . Traps Extracted . | . . . Installed . | . . . Triggered 1 | . . 1 Machines | -11 -10 -10 ---------- Run | Yrd Mat Sub Machines Disabled 2 | . 2 . Max in Single Turn 1 | . 1 . Machines Repaired . | . . . Machines Dismantled . | . . . Machines Sabotaged . | . . . Overloaded Fab Kills . | . . . Hacking | -11 -10 -10 --------- Run | Yrd Mat Sub Machines Accessed 6 | . 6 . Terminals 6 | . 6 . Fabricators . | . . . Repair Stations . | . . . Recycling Units . | . . . Scanalyzers . | . . . Garrison Access . | . . . Total Hacks 10 | . 10 . Successful 6 | . 6 . Failed 4 | . 4 . Catastrophic 2 | . 2 . Database Lockouts . | . . . Manual 8 | . 8 . Terminals 10 | . 10 . Fabricators . | . . . Repair Stations . | . . . Recycling Units . | . . . Scanalyzers . | . . . Garrison Access . | . . . Terminal Hacks 3 | . 3 . Record 1 | . 1 . Prototype ID Bank 1 | . 1 . Hauler Manifests 1 | . 1 . Fabricator Hacks . | . . . Repair Station Hacks . | . . . Recycling Unit Hacks . | . . . Scanalyzer . | . . . Garrison Access Hacks . | . . . Unauthorized Hacks 3 | . 3 . Terminals 3 | . 3 . Botnet 3 | . 3 . Fabricators . | . . . Repair Stations . | . . . Recycling Units . | . . . Scanalyzers . | . . . Garrison Access . | . . . Data Cores Recovered . | . . . Used . | . . . Hacking Detections 6 | . 6 . Full Trace Events . | . . . Feedback Events . | . . . Feedback Blocked . | . . . Robot Schematics Acquired . | . . . Robots Built . | . . . Authchips . | . . . Time . | . . . Total Robot Build Rating . | . . . Part Schematics Acquired . | . . . Parts Built . | . . . Authchips . | . . . Time . | . . . Total Part Build Rating . | . . . Parts Repaired . | . . . Time . | . . . Parts Recycled . | . . . Recycled Matter . | . . . Retrieved Matter . | . . . Retrieved Components . | . . . Parts Scanalyzed . | . . . Part Schematics Acquired . | . . . Parts Damaged . | . . . Bothacking | -11 -10 -10 ------------ Run | Yrd Mat Sub Used RIF Installer . | . . . Robots Hacked . | . . . Non-combat . | . . . Combat . | . . . Robot Hacks Applied . | . . . Relay Couplers Released . | . . . Fabnet Peak Effective % . | . . . Robots Rewired . | . . . Allies Hacked . | . . . Hacks Repelled . | . . . Allies | -11 -10 -10 -------- Run | Yrd Mat Sub Total Allies . | . . . Largest Group . | . . . Highest-Rated Group . | . . . Highest-Rated Ally . | . . . Total Orders . | . . . Ally Attacks . | . . . Total Damage . | . . . Kills . | . . . Allies Corrupted . | . . . Allies Melted . | . . . Intel | -11 -10 -10 ------- Run | Yrd Mat Sub Robot Analysis Total . | . . . Derelict Logs Recovered 2 | . . 2 Drone Launches . | . . . Drone Recoveries . | . . . Exploration | -11 -10 -10 ------------- Run | Yrd Mat Sub Turns Passed 2754 | 96 1641 1017 Spaces Moved 1370 | 48 800 522 Core 15 | 15 . . Treads . | . . . Legs 1355 | 33 800 522 Wheels . | . . . Hover . | . . . Flight . | . . . Fastest Speed 50 | 50 120 120 Average Speed 142 | 169 136 148 Slowest Speed 250 | 250 190 190 Overloaded Moves . | . . . Propulsion Burnouts . | . . . Robots Hopped . | . . . Cave-ins Triggered . | . . . Exploration Rate (%) 43 | 4 99 27 Regions Visited 2 Branch Regions 1 Pre-discovered Areas . | . . . Known Exits Taken 1 | . 1 . Unknown Exits Taken 1 | 1 . . Scrap Searched 5 | . . 5 Spaces Dug . | . . . Terrain Destroyed 8 | . 8 . Melee . | . . . Projectile . | . . . AOE 8 | . 8 . Terrain Rammed . | . . . Walls Destroyed . | . . . Machines Disabled . | . . . Actions | -11 -10 -10 --------- Run | Yrd Mat Sub Total 1971 | 60 1276 635 Wait 443 | . 414 29 Move 1368 | 47 799 522 Hop . | . . . Pick Up 23 | 7 6 10 Fast Attach 15 | 5 9 1 Attach 3 | 1 . 2 Detach 1 | . 1 . Swap 9 | . 1 8 Drop 19 | . 10 9 Fire 90 | . 36 54 Melee . | . . . Ram . | . . . Kick . | . . . Crush . | . . . Escape Stasis . | . . . Rewire . | . . . Trap . | . . . Miscellaneous . | . . . Route ------- -11/Scrapyard -10/Materials (discovered 6 exits: [*Mat x3] / [*Min x2] / *Sub) -10/Subcaves (discovered 1 exit: *Mat) History --------- Turn | Location | Event 26 | -11/Scrapyard | Discovered new exit (range 15) 97 | -11/Scrapyard | Entered Materials 262 | -10/Materials | Discovered new exit (range 12) 323 | -10/Materials | Build established: Mutant 513 | -10/Materials | Discovered new exit (range 16) 818 | -10/Materials | Discovered new exit (range 14) 910 | -10/Materials | Discovered new exit (range 5) 1283 | -10/Materials | Discovered new exit (range 4) 1456 | -10/Materials | Discovered new exit (range 17) 1737 | -10/Materials | Identified exit to Subcaves 1738 | -10/Materials | Entered Subcaves 1768 | -10/Subcaves | Discovered new exit (range 11) 1771 | -10/Subcaves | Learned Materials terminal intel 1883 | -10/Subcaves | A swath of the cavern ceiling suddenly collapsed 2267 | -10/Subcaves | Core integrity fell below 50% 2416 | -10/Subcaves | Identified exit to Materials 2699 | -10/Subcaves | Core integrity fell below 20% 2755 | -10/Subcaves | Destroyed by 13-7KN(R) with Subdweller Laser Last Messages --------------- 02341_ Searching scrap... 02341_ Found Sub. Machine Gun. 02341_ Found 23 Matter. 02343_ Subatomizers dissect the Flamer. 02345_ Dropped Assault Rifle. 02345_ Acquired Sub. Machine Gun. 02416_ EXIT=IDENTIFIED: MATERIALS 02431_ System corrupted: FCS attempts to trigger Battle Cannon. 02431_ System corrupted: Battle Cannon misfires. 02472_ Subatomizers dissect the Sub. Optics. 02608_ System corrupted: Matter fused (-8). 02694_ UV-GK1(R) destroyed. 02706_ 5S-DYQ(R) affixes Scrap Shield Fragment to Scrap Shield. 02715_ 5S-DYQ(R) knocked back. 02718_ 5S-DYQ(R) destroyed. 02744_ S7-BVZ(R) destroyed. 02747_ Acquired 24 matter. 02751_ Acquired 6 matter. Map ----- +----------------------------------------------------+ | ?????????????????????????????????????????????????? | | ?????????????###?????????????????????????????????? | | ##???????????# ##???###??????????????????????????? | | ##??????????# ##?## ##?????????????????????????? | | ##???###???## ### "#?????????????????????????? | | ##?## #???## "##????????????????????????? | | #?# ##??# " ####?????????????????????? | | #?# ##?# """#?????????????????????? | | ### #?# ## """"" #????????????????????? | | #?# ### #### ##????????????????????? | | #?##### ##???##?????????????????????? | | ### #????# #????? ?????????????????????? | | # ## ###?## #????? #???? ##?????????????? | | ### ### #????? ##??? ??????????????? | | #?# #????? #?? #??????????????? | | #### ## ##???# #?# ###????????????? | | ######## #?## ## R ?????????????? | | ##??## ## #?# # ??????????????? | | #### ### ### ???????????????? | | ### ##? #????????????????? | | ### #######?? #????????????????? | | ??## ### ##?????? #?????????????????? | | ???## ### # ##????? ##????????????????? | | ##??### ## ""#"####### % ### ????????? | | ####?# ##"#""#"# #&### !%[ ???????? | | # #### ########"###/ &@ [!& ???????? | | #####"""?### ;;=### %% ##??????????? | | #???##""#"#; "" #?## % #???????????? | | ### ##??#"#"""##"" ##??? #???????????? | | ###?## ##?#""#"##"#""#????## #???????????? | | ##### #???#""""### #?????? #???????????? | | " ##??## #"""""#??????? ## ??????????? | | #### ####""##??????? #?? ??????????? | | "" #""#####????????? #?? ??????????? | | &%"#####????????????? # ????????????? | | & "####?????????????? ## ????????????? | | " ##?????????????????##???????????????? | | #???????????????????????????????????? | | #???????????????????????????????????? | | # # ##???????????????????????????????????? | | ### #########????????????????????????????????????? | | ??##?????????????????????????????????????????????? | | ?????????????????????????????????????????????????? | | ?????????????????????????????????????????????????? | | ?????????????????????????????????????????????????? | | ?????????????????????????????????????????????????? | | ?????????????????????????????????????????????????? | | ?????????????????????????????????????????????????? | | ?????????????????????????????????????????????????? | | ?????????????????????????????????????????????????? | +----------------------------------------------------+ Best States ------------- Heat Dissipation 25 Energy Generation 12 Energy Capacity 265 Matter Stores 300 Matter Capacity 300 Sight Range 18 Terrain Scan Density 10 Evasion (%) 55 Item Schematics ----------------- None Robot Schematics ------------------ None Fabricated ------------ Nothing Alien Tech Used ----------------- None Achievements -------------- None Challenges ------------ None Game ------ Seed BiometalBarrageDisintegrator Manual? 0 Play Time 00:24:51 Cumulative 46.3 hours Start 2024.04.23 @ 12:01:26 End 2024.04.23 @ 12:27:39 Sessions 1 Manual Loads 0 Difficulty Rogue Special Mode None Game No. 43 Rogue 31 Adventurer 12 Explorer 0 Win Type - Total 0 Types 0/0/0/0/0/0/0/0/0 Lore% 24 Gallery% 38 Achievement% 31 Wizard Run 0 Options --------- Layout 2 ASCII 0 Keyboard 0 Movement Mouse Keybinds 0 Fullscreen 1 Font 24/Smallcaps Map View 50x44 Zoom Use 31% Tactical HUD 1 Map Filters NONE Filters NONE Steam 1 RUN: f75cc48d-0de5-46f5-8c03-d414c4c7167f